bitfinex/quotes_BTCUSD_20240828
["timestamp","ask_amount","ask_price","bid_price","bid_amount"]
[1724872954212,0.000819,59472.0,59471.0,1.90625766]
[1724872954844,0.000819,59472.0,59471.0,1.91314564]
[1724872955052,0.000818,59487.0,59486.0,1.331945]
[1724872955268,0.000818,59487.0,59486.0,1.77480308]
[1724872955467,0.000818,59487.0,59486.0,1.82495472]
[1724872955681,0.000818,59487.0,59486.0,1.77680308]
[1724872957172,0.02717656,59487.0,59486.0,1.77680308]
[1724872958108,0.02717656,59487.0,59486.0,1.53986306]
[1724872958376,0.02717656,59487.0,59486.0,0.41622406]
[1724872958634,0.02717656,59487.0,59486.0,0.75743706]
[1724872958870,0.02717656,59487.0,59486.0,1.09365006]
[1724872959127,0.02717656,59487.0,59486.0,1.42986306]
[1724872959585,0.02717656,59487.0,59486.0,1.09365006]
[1724872960526,0.02717656,59487.0,59486.0,1.08865006]
[1724872960823,0.02717656,59487.0,59486.0,1.09355006]
[1724872961275,0.02717656,59487.0,59486.0,1.08855006]
[1724872961742,0.02717656,59487.0,59486.0,0.10791806]
[1724872961954,0.02717656,59487.0,59486.0,0.27602406]
[1724872962679,0.02717656,59487.0,59486.0,0.61223706]
[1724872964143,0.02717656,59487.0,59486.0,0.01453955]
[1724872964384,0.02717656,59487.0,59486.0,0.18264555]
[1724872964935,0.02717656,59487.0,59486.0,0.01453955]
[1724872965412,0.19527956,59487.0,59486.0,0.01453955]
[1724872965675,1.28490056,59487.0,59486.0,0.01453955]
[1724872966127,0.168124,59480.0,59476.0,0.168134]
[1724872966591,0.336242,59481.0,59476.0,0.168134]
[1724872966592,0.16812,59481.0,59477.0,0.01283871]
[1724872966810,0.16812,59481.0,59477.0,0.18096871]
[1724872967043,0.0263642,59480.0,59477.0,0.168131]
[1724872967283,0.0263642,59480.0,59478.0,0.01283504]
[1724872968193,0.0263642,59480.0,59479.0,0.17148824]
[1724872968650,0.0263642,59480.0,59479.0,1.33661628]
[1724872968855,0.0263642,59480.0,59479.0,1.33325404]
[1724872969060,0.0263642,59480.0,59479.0,0.59474804]
[1724872970048,0.0263642,59480.0,59479.0,0.93100104]
[1724872971000,0.0263642,59480.0,59479.0,1.26725404]
[1724872971460,0.0263642,59480.0,59479.0,0.93100104]
[1724872975257,0.0263642,59480.0,59479.0,1.26725404]
[1724872975492,0.0263642,59480.0,59479.0,0.93100104]
[1724872975975,0.0263642,59480.0,59479.0,1.02437955]
[1724872976455,0.336184,59492.0,59483.0,0.336225]
[1724872976456,0.336188,59491.0,59483.0,0.336225]
[1724872976683,0.168099,59489.0,59485.0,0.168108]
[1724872976907,0.02636347,59488.0,59485.0,0.168107]
[1724872977147,0.02636347,59488.0,59486.0,0.01293439]
[1724872977388,0.02636347,59488.0,59487.0,0.168103]
[1724872977825,0.02636347,59488.0,59487.0,0.18103372]
[1724872978059,0.02636347,59488.0,59487.0,0.51724072]
[1724872978557,0.02636347,59488.0,59487.0,0.59474072]
[1724872978790,0.02636347,59488.0,59487.0,0.93594772]
[1724872979047,0.02636347,59488.0,59487.0,1.27215472]
[1724872980260,0.02636347,59488.0,59487.0,1.27415472]
[1724872980979,0.064619,59508.0,59504.0,0.168054]
[1724872981210,0.232664,59508.0,59504.0,0.168054]
[1724872981464,0.232664,59508.0,59506.0,0.16805]
[1724872981465,0.000819,59508.0,59506.0,0.16805]
[1724872981691,0.03454672,59507.0,59506.0,0.16805]
[1724872981923,0.03454672,59507.0,59506.0,0.01283992]
[1724872982882,0.03454672,59507.0,59503.0,0.168057]
[1724872983090,0.03454672,59507.0,59497.0,0.336147]
[1724872983300,0.168057,59504.0,59500.0,0.168066]
[1724872983515,0.412001,59506.0,59494.0,0.0832]
[1724872983516,0.0759,59506.0,59494.0,0.0832]
[1724872983739,0.168083,59495.0,59490.0,0.168094]
[1724872983992,0.0659,59494.0,59486.0,0.1690058]
[1724872984218,0.168103,59487.0,59486.0,0.0008998]
[1724872984428,0.0759,59487.0,59486.0,0.0008998]
[1724872984838,0.0659,59494.0,59486.0,0.0008998]
[1724872984839,0.168096,59490.0,59486.0,0.1690058]
[1724872985053,0.168098,59489.0,59486.0,0.0008998]
[1724872985268,0.0759,59491.0,59486.0,0.0008998]
[1724872985499,0.168102,59488.0,59486.0,0.0008998]
[1724872985723,0.168103,59487.0,59486.0,0.0008998]
[1724872986165,0.336197,59489.0,59486.0,0.0008998]
[1724872986166,0.1681,59489.0,59486.0,0.0008998]
[1724872986622,0.336191,59490.0,59486.0,0.0008998]
[1724872986623,0.168101,59488.0,59486.0,0.0008998]
[1724872987054,0.19446229,59488.0,59486.0,0.0008998]
[1724872988950,0.02636129,59488.0,59486.0,0.0008998]
[1724872989175,0.19446329,59488.0,59486.0,0.0008998]
[1724872989391,0.168103,59487.0,59486.0,0.0008998]
[1724872990290,0.50431,59487.0,59486.0,0.0008998]
[1724872990518,1.318524,59487.0,59486.0,0.0008998]
[1724872991946,1.150421,59487.0,59486.0,0.0008998]
[1724872992182,1.318524,59487.0,59486.0,0.0008998]
[1724872997991,1.318524,59487.0,59471.0,0.0009009]
[1724872997992,0.84073,59472.0,59471.0,0.0009009]
[1724872998217,1.320922,59472.0,59471.0,0.0009009]
[1724872999974,1.34729418,59472.0,59471.0,0.0009009]
[1724873000600,0.19451818,59472.0,59471.0,0.0009009]
[1724873001212,0.19451818,59472.0,59471.0,0.01367386]
[1724873001413,0.53081018,59472.0,59471.0,0.0009009]
[1724873001613,0.53081018,59472.0,59471.0,0.01367386]
[1724873001813,0.19451818,59472.0,59471.0,0.0009009]
[1724873002230,0.02637218,59472.0,59471.0,0.1690499]
[1724873002435,0.02637218,59472.0,59471.0,0.66331882]
[1724873002670,0.02637218,59472.0,59471.0,0.99961682]
[1724873002910,0.02637218,59472.0,59471.0,0.09557182]
[1724873003144,0.94360218,59472.0,59471.0,0.01367182]
[1724873003642,1.27989418,59472.0,59471.0,0.0009009]
[1724873006038,1.67768618,59472.0,59471.0,0.0009009]
[1724873007694,2.13897818,59472.0,59471.0,0.0009009]
[1724873007939,2.14397818,59472.0,59471.0,0.0009009]
[1724873008149,2.4381545,59472.0,59471.0,0.0009009]
[1724873009796,2.53876536,59472.0,59471.0,0.0009009]
[1724873010022,2.707317,59472.0,59471.0,0.0009009]
[1724873010263,2.4381545,59472.0,59471.0,0.0009009]
[1724873010501,2.53668733,59472.0,59471.0,0.0009009]
[1724873010741,2.51351374,59472.0,59471.0,0.0009009]
[1724873011290,2.4381545,59472.0,59471.0,0.0009009]
[1724873011533,2.4361545,59472.0,59471.0,0.0009009]
[1724873011775,2.4381545,59472.0,59471.0,0.0009009]
[1724873012026,2.4361545,59472.0,59471.0,0.0009009]
[1724873012296,2.4381545,59472.0,59471.0,0.0009009]
[1724873013234,2.4361545,59472.0,59471.0,0.0009009]
[1724873013708,2.4371545,59472.0,59471.0,0.0009009]
[1724873013946,2.4381545,59472.0,59471.0,0.0009009]
[1724873014664,2.4381545,59472.0,59471.0,0.1463009]
[1724873014665,0.02637218,59472.0,59471.0,0.1463009]
[1724873015082,0.02637218,59472.0,59471.0,0.9870459]
[1724873015356,0.02637218,59472.0,59471.0,0.99987206]
[1724873015855,0.02637218,59472.0,59471.0,0.32727606]
[1724873016310,0.02637218,59472.0,59471.0,0.66357406]
[1724873018373,0.02637218,59472.0,59471.0,0.32727606]
[1724873018597,0.02637218,59472.0,59471.0,0.66357406]
[1724873021768,0.02637218,59472.0,59471.0,0.32727606]
[1724873022012,0.02637218,59472.0,59471.0,0.15912706]
[1724873022271,0.86710218,59472.0,59471.0,0.01372706]
[1724873022792,0.86710218,59472.0,59471.0,0.0009009]
[1724873025248,0.19451818,59472.0,59471.0,0.0009009]
[1724873025492,0.19451818,59472.0,59471.0,0.0787009]
[1724873025493,0.02637218,59472.0,59471.0,0.0787009]
[1724873025940,0.02637218,59472.0,59471.0,0.2584867]
[1724873026895,0.02637218,59472.0,59471.0,0.5947847]
[1724873027342,0.02637218,59472.0,59471.0,0.0903377]
[1724873029726,0.02637218,59472.0,59471.0,0.2584867]
[1724873030146,0.02637218,59472.0,59471.0,0.0903377]
[1724873031076,0.53081018,59472.0,59471.0,0.0125377]
[1724873031289,1.26459418,59472.0,59471.0,0.0125377]
[1724873031524,1.26459418,59472.0,59471.0,0.0009009]
[1724873033442,1.73417922,59472.0,59471.0,0.0009009]
[1724873033653,1.62388618,59472.0,59471.0,0.0009009]
[1724873034522,1.63062876,59472.0,59471.0,0.0009009]
[1724873036444,1.29433676,59472.0,59471.0,0.0009009]
[1724873036735,0.31665463,59474.0,59471.0,0.0009009]
[1724873036736,0.07545324,59481.0,59478.0,1.008774]
[1724873036940,0.07545324,59481.0,59471.0,0.0009009]
[1724873036941,0.000818,59486.0,59485.0,0.519328]
[1724873037169,0.000818,59486.0,59485.0,1.357566]
[1724873037414,0.000818,59486.0,59485.0,1.36960788]
[1724873037652,0.000818,59486.0,59485.0,1.43040788]
[1724873040900,0.000818,59486.0,59485.0,1.32540788]
[1724873041380,0.505137,59486.0,59485.0,0.01204188]
[1724873041882,0.000818,59486.0,59485.0,0.504328]
[1724873042133,0.000818,59486.0,59485.0,0.923447]
[1724873042395,0.000818,59486.0,59485.0,1.33704482]
[1724873044007,0.000818,59486.0,59485.0,1.34204482]
[1724873044220,0.000818,59486.0,59485.0,1.34491542]
[1724873044447,0.000818,59486.0,59485.0,1.78451293]
[1724873044680,0.000818,59486.0,59485.0,1.88651293]
[1724873044967,0.000818,59486.0,59485.0,2.15235342]
[1724873045471,0.000208,59507.0,59500.0,0.005]
[1724873045808,0.000208,59507.0,59495.0,0.01]
[1724873045809,0.000208,59507.0,59506.0,0.91745]
[1724873046007,0.000208,59507.0,59506.0,1.25855]
[1724873046241,0.000208,59507.0,59506.0,1.60665]
[1724873046482,0.000208,59507.0,59506.0,1.70682959]
[1724873046697,0.0263534,59510.0,59509.0,2.003256]
[1724873046906,0.000819,59528.0,59513.0,0.521091]
[1724873047121,0.02634788,59520.0,59513.0,1.417213]
[1724873047339,0.02634788,59520.0,59513.0,1.78778617]
[1724873047549,0.02634788,59520.0,59513.0,1.45172517]
[1724873047768,0.02634788,59520.0,59513.0,1.42672517]
[1724873048258,0.000819,59528.0,59513.0,1.42872517]
[1724873048445,0.03454769,59514.0,59513.0,1.42672517]
[1724873049088,0.03454769,59514.0,59513.0,1.07566417]
[1724873049305,0.03454769,59514.0,59513.0,0.98066417]
[1724873049528,0.03454769,59514.0,59513.0,1.31672517]
[1724873051335,0.03454769,59514.0,59513.0,1.31172517]
[1724873051555,0.03454769,59514.0,59513.0,1.31672517]
[1724873053027,0.03454769,59514.0,59513.0,1.68578617]
[1724873053259,0.03454769,59514.0,59513.0,1.78778617]
[1724873053260,0.0082,59514.0,59513.0,1.78778617]
[1724873054182,0.0082,59514.0,59513.0,1.76278617]
[1724873054840,0.0082,59514.0,59513.0,1.76478617]
[1724873056147,0.0082,59514.0,59513.0,1.85816468]
[1724873057538,0.02634753,59515.0,59514.0,1.610447]
[1724873057760,0.02634753,59515.0,59514.0,1.274392]
[1724873057975,0.02634753,59515.0,59514.0,1.7221125]
[1724873058917,0.02634753,59515.0,59514.0,1.3860575]
[1724873059395,0.02634753,59515.0,59514.0,1.4090575]
[1724873059618,0.02634753,59515.0,59514.0,1.7451125]
[1724873061481,0.02634753,59515.0,59514.0,1.8097125]
[1724873061484,0.000819,59528.0,59527.0,1.528914]
[1724873061652,0.000819,59528.0,59527.0,2.38739293]
[1724873061890,0.000818,59537.0,59527.0,2.38739293]
[1724873061891,1e-08,59535.0,59534.0,1.180797]
[1724873062096,1e-08,59535.0,59534.0,2.00291198]
[1724873062295,1e-08,59535.0,59534.0,1.71155005]
[1724873062497,1e-08,59535.0,59534.0,1.81155005]
[1724873063300,1e-08,59535.0,59534.0,1.87715005]
[1724873063513,1e-08,59535.0,59534.0,1.87515005]
[1724873063748,1e-08,59535.0,59534.0,1.85215005]
[1724873063968,1e-08,59535.0,59534.0,1.85415005]
[1724873065278,1e-08,59535.0,59534.0,1.51120805]
[1724873065501,1e-08,59535.0,59534.0,0.91846605]
[1724873065732,0.0263391,59535.0,59534.0,0.91846605]
[1724873069563,0.0263391,59535.0,59534.0,0.92346605]
[1724873069780,0.0263391,59535.0,59534.0,0.91846605]
[1724873069988,0.0263391,59535.0,59534.0,0.58252405]
[1724873070203,0.0263391,59535.0,59534.0,0.91846605]
[1724873070400,0.0263391,59535.0,59534.0,0.58252405]
[1724873070625,0.0263391,59535.0,59534.0,0.07861105]
[1724873070832,0.5953431,59535.0,59534.0,0.07861105]
[1724873071123,0.5953431,59535.0,59517.0,0.01]
[1724873071124,0.5953431,59535.0,59509.0,0.4768]
[1724873071125,0.1405,59524.0,59509.0,0.4768]
[1724873071307,0.504057,59517.0,59516.0,0.50540786]
[1724873071478,0.0754,59523.0,59514.0,0.01887862]
[1724873071697,0.02634912,59517.0,59510.0,0.336073]
[1724873071906,0.02634912,59517.0,59512.0,0.168031]
[1724873072114,0.19436912,59517.0,59510.0,0.336073]
[1724873072337,0.19436912,59517.0,59516.0,0.84011]
[1724873072338,0.02634912,59517.0,59516.0,0.84011]
[1724873072560,0.02634912,59517.0,59516.0,0.90714098]
[1724873072819,0.02634912,59517.0,59516.0,1.24318498]
[1724873073058,0.308485,59529.0,59524.0,0.167999]
[1724873073276,0.167989,59528.0,59523.0,0.168002]
[1724873074122,0.167991,59527.0,59523.0,0.168002]
[1724873074332,0.16684652,59529.0,59526.0,0.167993]
[1724873074533,0.16684652,59529.0,59528.0,0.167988]
[1724873074534,0.02634652,59529.0,59528.0,0.167988]
[1724873074758,0.02634652,59529.0,59524.0,0.335994]
[1724873074759,0.02634652,59529.0,59525.0,0.00335955]
[1724873074969,0.02634652,59529.0,59525.0,0.17135455]
[1724873075375,0.02634652,59529.0,59524.0,0.00335961]
[1724873075576,0.19433352,59529.0,59524.0,0.167998]
[1724873075776,0.02634652,59529.0,59524.0,0.167998]
[1724873075986,0.02634652,59529.0,59523.0,0.06703098]
[1724873075987,0.0754,59527.0,59523.0,0.06703098]
[1724873076187,0.243393,59527.0,59523.0,0.06703098]
[1724873076651,0.0754,59527.0,59523.0,0.23503098]
[1724873077100,0.243391,59527.0,59523.0,0.23503098]
[1724873077647,0.0754,59527.0,59523.0,0.23503098]
[1724873077857,0.0754,59527.0,59524.0,0.167998]
[1724873078086,0.335957,59532.0,59526.0,0.167992]
[1724873078087,0.16798,59531.0,59526.0,0.167992]
[1724873078292,0.16798,59531.0,59523.0,0.06703098]
[1724873078293,0.335959,59531.0,59524.0,0.167997]
[1724873078498,0.167985,59529.0,59525.0,0.167996]
[1724873079214,0.167985,59529.0,59523.0,0.06703098]
[1724873079215,0.16799,59528.0,59523.0,0.06703098]
[1724873079394,0.02634432,59529.0,59527.0,0.16799]
[1724873079809,0.02634432,59529.0,59525.0,0.167993]
[1724873080137,0.02634432,59529.0,59525.0,0.23502398]
[1724873080138,0.19432932,59529.0,59525.0,0.23502398]
[1724873080363,0.02634432,59529.0,59525.0,0.23502398]
[1724873080797,0.02634432,59529.0,59527.0,0.16799]
[1724873081001,0.02634432,59529.0,59525.0,0.40302198]
[1724873081205,0.02634432,59529.0,59527.0,0.167989]
[1724873081650,0.02634432,59529.0,59526.0,0.335987]
[1724873081884,0.02634432,59529.0,59528.0,0.167988]
[1724873082500,0.02634432,59529.0,59528.0,0.18691383]
[1724873082862,0.02634432,59529.0,59528.0,0.01892583]
[1724873085481,0.02634432,59529.0,59527.0,0.167989]
[1724873085725,0.243679,59532.0,59528.0,0.18694958]
[1724873085844,0.167979,59531.0,59528.0,0.18694958]
[1724873086043,0.02634415,59529.0,59528.0,0.18694958]
[1724873086741,0.02634415,59529.0,59528.0,0.01896258]
[1724873087733,0.02634415,59529.0,59528.0,0.52292658]
[1724873087980,0.02634415,59529.0,59528.0,0.85890258]
[1724873088197,0.02634415,59529.0,59528.0,1.19987858]
[1724873088409,0.000818,59533.0,59532.0,0.508929]
[1724873088635,0.000818,59533.0,59532.0,1.319435]
[1724873088840,0.000818,59533.0,59532.0,1.657388]
[1724873089067,0.000818,59533.0,59532.0,2.50598311]
[1724873089333,1e-08,59535.0,59534.0,1.266997]
[1724873089569,1e-08,59535.0,59534.0,2.16119797]
[1724873089780,1e-08,59535.0,59534.0,2.18065368]
[1724873089998,1e-08,59535.0,59534.0,2.23413596]
[1724873090204,0.02514056,59545.0,59544.0,1.256601]
[1724873090428,0.02514056,59545.0,59544.0,0.06703098]
[1724873090897,0.02514056,59545.0,59544.0,0.25431536]
[1724873091361,0.02514056,59545.0,59544.0,0.59020136]
[1724873091797,0.02514056,59545.0,59544.0,0.92608736]
[1724873092314,0.02514056,59545.0,59544.0,0.59020136]
[1724873092532,0.08664056,59545.0,59544.0,0.25431536]
[1724873092759,0.08664056,59545.0,59544.0,0.08637236]
[1724873092992,0.33608056,59545.0,59544.0,0.08637236]
[1724873093218,0.67196056,59545.0,59544.0,0.08637236]
[1724873093676,0.67196056,59545.0,59544.0,0.06703098]
[1724873093920,0.33608056,59545.0,59544.0,0.06703098]
[1724873094381,0.16814056,59545.0,59544.0,0.06703098]
[1724873094641,0.16814056,59545.0,59544.0,0.08637236]
[1724873095093,0.02514056,59545.0,59544.0,0.92608736]
[1724873095583,0.02514056,59545.0,59544.0,1.26197336]
[1724873095801,0.02514056,59545.0,59544.0,0.92608736]
[1724873096673,0.02514056,59545.0,59544.0,1.26197336]
[1724873101270,0.02514056,59545.0,59544.0,0.92608736]
[1724873101721,0.02514056,59545.0,59544.0,1.26197336]
[1724873102191,0.02514056,59545.0,59544.0,1.68795936]
[1724873102445,0.00819,59547.0,59546.0,0.66276198]
[1724873102665,0.00819,59547.0,59546.0,1.79338398]
[1724873102899,0.00819,59547.0,59546.0,1.81255188]
[1724873103323,1e-08,59548.0,59547.0,0.017]
[1724873103546,1e-08,59548.0,59547.0,1.65476748]
[1724873103757,1e-08,59548.0,59547.0,1.75702927]
[1724873106427,1e-08,59548.0,59547.0,2.09289827]
[1724873106647,1e-08,59548.0,59547.0,2.15529827]
[1724873109342,1e-08,59548.0,59547.0,2.15194079]
[1724873110038,0.34606104,59575.0,59563.0,0.335778]
[1724873110254,0.34606204,59575.0,59564.0,0.05885098]
[1724873110476,0.34606204,59575.0,59564.0,0.07770536]
[1724873110692,0.01035004,59575.0,59564.0,0.07770536]
[1724873110923,0.0004,59579.0,59567.0,0.005]
[1724873111192,0.0004,59579.0,59578.0,0.167847]
[1724873111453,0.0004,59579.0,59578.0,0.503541]
[1724873111676,0.0004,59579.0,59578.0,0.52230676]
[1724873112568,0.0004,59579.0,59578.0,0.85800076]
[1724873112800,0.0004,59579.0,59578.0,0.52230676]
[1724873113064,0.0004,59579.0,59578.0,0.85800076]
[1724873113299,0.0004,59579.0,59578.0,0.52230676]
[1724873113790,0.0004,59579.0,59578.0,0.85800076]
[1724873114911,0.0004,59579.0,59578.0,0.91685174]
[1724873115170,0.0004,59579.0,59578.0,1.05545174]
[1724873115444,0.0004,59579.0,59578.0,1.39814574]
[1724873115909,0.0004,59579.0,59578.0,2.20801237]
[1724873116365,0.00818,59593.0,59592.0,1.321652]
[1724873116593,0.00818,59593.0,59592.0,2.08396493]
[1724873116843,0.00818,59593.0,59592.0,2.10249419]
[1724873117808,0.00818,59593.0,59592.0,1.80879626]
[1724873118257,0.00818,59593.0,59592.0,2.10249419]
[1724873118722,1e-08,59593.0,59592.0,2.10249419]
[1724873120026,0.0004,59599.0,59598.0,1.181533]
[1724873120457,0.0004,59599.0,59598.0,1.258533]
[1724873120716,0.0004,59599.0,59598.0,1.27656405]
[1724873121142,0.0004,59599.0,59598.0,1.63514505]
[1724873121820,0.0004,59599.0,59598.0,1.29956405]
[1724873122886,0.0004,59599.0,59598.0,1.26956405]
[1724873123101,0.0004,59599.0,59598.0,0.52140205]
[1724873123322,0.0785,59599.0,59598.0,0.09088203]
[1724873123538,0.0785,59599.0,59598.0,0.07688203]
[1724873123759,0.0785,59599.0,59598.0,0.58025303]
[1724873124004,0.0004,59599.0,59598.0,0.58025303]
[1724873124447,0.0004,59599.0,59598.0,0.92983403]
[1724873124670,0.0004,59599.0,59598.0,0.91583403]
[1724873124887,0.0004,59599.0,59598.0,0.92983403]
[1724873125116,0.0004,59599.0,59598.0,1.26541503]
[1724873125844,0.001217,59599.0,59598.0,1.27041503]
[1724873126079,0.001217,59599.0,59598.0,2.10587703]
[1724873126298,0.00818,59606.0,59604.0,1.594361]
[1724873126491,0.00818,59606.0,59604.0,1.617361]
[1724873126707,0.00818,59606.0,59604.0,1.73540132]
[1724873127585,0.00818,59606.0,59604.0,2.2059983]
[1724873127818,0.00818,59606.0,59604.0,2.2684983]
[1724873128572,0.00818,59606.0,59604.0,2.2150823]
[1724873129257,0.00818,59606.0,59604.0,1.8795353]
[1724873129503,0.00818,59606.0,59604.0,1.8775353]
[1724873129743,0.00818,59606.0,59604.0,1.45135432]
[1724873129970,0.00818,59606.0,59604.0,1.30745432]
[1724873130459,0.00818,59606.0,59604.0,1.65900132]
[1724873130679,0.00818,59606.0,59604.0,1.64500132]
[1724873130903,0.00818,59606.0,59604.0,1.65900132]
[1724873131119,0.02574467,59605.0,59604.0,1.65900132]
[1724873131566,0.02574467,59605.0,59604.0,1.68200132]
[1724873132699,0.02574467,59605.0,59604.0,1.68000132]
[1724873133166,0.02574467,59605.0,59604.0,1.68200132]
[1724873133393,0.02574467,59605.0,59604.0,1.64700132]
[1724873133620,0.02574467,59605.0,59604.0,1.0285413]
[1724873133838,0.02574467,59605.0,59604.0,1.3640883]
[1724873134293,0.02574467,59605.0,59604.0,1.0285413]
[1724873134746,0.02574467,59605.0,59604.0,0.9145413]
[1724873134961,0.02574467,59605.0,59604.0,1.2500883]
[1724873135174,0.02574467,59605.0,59604.0,1.2640883]
[1724873135392,0.02574467,59605.0,59604.0,0.9285413]
[1724873135657,0.09174467,59605.0,59604.0,0.0896743]
[1724873136147,0.25951567,59605.0,59604.0,0.03204032]
[1724873136363,0.16774467,59605.0,59604.0,0.18581332]
[1724873136585,0.16774467,59605.0,59604.0,0.181773]
[1724873136810,0.16774467,59605.0,59604.0,0.19965609]
[1724873137471,0.16774467,59605.0,59604.0,0.03188309]
[1724873138333,0.16774467,59605.0,59604.0,0.53520309]
[1724873138594,0.16774467,59605.0,59604.0,0.03188309]
[1724873138816,6e-06,59608.0,59604.0,0.03188309]
[1724873139261,6e-06,59608.0,59604.0,0.35342809]
[1724873139485,6e-06,59608.0,59605.0,0.335541]
[1724873139724,6e-06,59608.0,59606.0,0.167768]
[1724873139966,6e-06,59608.0,59605.0,0.335541]
[1724873139967,6e-06,59608.0,59607.0,0.503296]
[1724873140209,6e-06,59608.0,59607.0,0.838827]
[1724873140445,6e-06,59608.0,59607.0,0.85721428]
[1724873142087,0.01757452,59608.0,59607.0,0.52168328]
[1724873142516,0.01757452,59608.0,59607.0,0.85721428]
[1724873142730,0.01757452,59608.0,59607.0,1.19274528]
[1724873143158,0.01857452,59608.0,59607.0,1.20674528]
[1724873143615,0.01857452,59608.0,59607.0,1.68747628]
[1724873143837,0.01857452,59608.0,59607.0,1.69447628]
[1724873144346,0.01857452,59608.0,59607.0,1.35694528]
[1724873144556,0.01757452,59608.0,59607.0,1.34294528]
[1724873144773,0.01857452,59608.0,59607.0,1.69247628]
[1724873144991,0.01857452,59608.0,59607.0,1.69447628]
[1724873145427,0.01857452,59608.0,59607.0,1.75211026]
[1724873145648,0.01857452,59608.0,59607.0,1.75011026]
[1724873146081,0.01757452,59608.0,59607.0,1.73611026]
[1724873146315,0.01757452,59608.0,59607.0,1.75011026]
[1724873146548,0.01757452,59608.0,59607.0,1.74511026]
[1724873146743,0.01757452,59608.0,59607.0,1.73111026]
[1724873146962,0.01757452,59608.0,59607.0,1.74711026]
[1724873147638,0.01757452,59608.0,59607.0,1.75211026]
[1724873148061,0.01757452,59608.0,59607.0,1.85211026]
[1724873148512,6e-06,59608.0,59607.0,2.21064126]
[1724873148752,0.0004,59619.0,59618.0,1.251141]
[1724873148975,0.0004,59619.0,59618.0,1.64971]
[1724873149198,0.01796452,59619.0,59618.0,1.6680175]
[1724873149430,0.01796452,59619.0,59618.0,1.6029175]
[1724873149680,0.01796452,59619.0,59618.0,1.2674485]
[1724873149895,0.01796452,59619.0,59618.0,1.2064485]
[1724873149896,0.0004,59619.0,59618.0,1.2064485]
[1724873150114,0.0004,59619.0,59618.0,0.8569795]
[1724873150593,0.0004,59619.0,59618.0,1.2064485]
[1724873150895,0.0004,59619.0,59618.0,0.8709795]
[1724873151988,0.0004,59619.0,59618.0,1.2064485]
[1724873152221,0.0004,59619.0,59618.0,0.8709795]
[1724873152872,0.0004,59619.0,59618.0,1.2064485]
[1724873153114,0.0004,59619.0,59618.0,0.5355105]
[1724873153572,0.0004,59619.0,59618.0,0.8709795]
[1724873154479,0.0004,59619.0,59618.0,0.92861348]
[1724873155151,0.0004,59619.0,59618.0,1.26408248]
[1724873156514,0.0004,59619.0,59618.0,0.59314448]
[1724873156762,0.0004,59619.0,59618.0,0.5355105]
[1724873156975,0.0495,59619.0,59618.0,0.5355105]
[1724873157420,0.0495,59619.0,59618.0,0.0323075]
[1724873157653,0.1122,59619.0,59618.0,0.0323075]
[1724873157885,0.0004,59619.0,59618.0,0.0323075]
[1724873158139,0.168131,59619.0,59618.0,0.0323075]
[1724873158375,0.0004,59619.0,59618.0,0.1860415]
[1724873158625,0.0004,59619.0,59618.0,0.0323075]
[1724873159284,0.0004,59619.0,59618.0,0.0463075]
[1724873159540,1.22362,59619.0,59618.0,0.0463075]
[1724873159763,1.28712,59619.0,59618.0,0.0463075]
[1724873160028,1.28712,59619.0,59618.0,0.028]
[1724873160255,1.28712,59619.0,59599.0,0.0009009]
[1724873160256,0.167776,59603.0,59599.0,0.0009009]
[1724873160487,0.578729,59603.0,59599.0,0.0009009]
[1724873160712,0.410955,59603.0,59599.0,0.0009009]
[1724873160969,0.838925,59600.0,59599.0,0.0009009]
[1724873161211,0.503355,59600.0,59599.0,0.0009009]
[1724873161439,0.838925,59600.0,59599.0,0.0009009]
[1724873161899,0.888025,59600.0,59599.0,0.0009009]
[1724873162383,0.888025,59600.0,59599.0,0.0149009]
[1724873162624,0.888025,59600.0,59599.0,0.0009009]
[1724873162896,1.223595,59600.0,59599.0,0.0149009]
[1724873163127,1.288495,59600.0,59599.0,0.0149009]
[1724873163861,1.288495,59600.0,59579.0,0.3365847]
[1724873163862,0.671308,59585.0,59579.0,0.0008987]
[1724873164107,0.16783,59584.0,59583.0,0.50540786]
[1724873164328,0.167834,59583.0,59579.0,0.0008987]
[1724873164552,0.33566,59584.0,59579.0,0.0008987]
[1724873164553,0.167836,59582.0,59579.0,0.0008987]
[1724873164771,0.167839,59581.0,59579.0,0.0008987]
[1724873164989,0.553502,59583.0,59579.0,0.0008987]
[1724873165208,0.167837,59582.0,59579.0,0.0008987]
[1724873165435,0.385667,59583.0,59579.0,0.0008987]
[1724873165436,0.01757739,59581.0,59579.0,0.0008987]
[1724873165872,0.167841,59580.0,59579.0,0.0008987]
[1724873166091,0.01757739,59581.0,59579.0,0.0008987]
[1724873166357,0.18541539,59581.0,59579.0,0.0008987]
[1724873166573,0.18541539,59581.0,59580.0,0.01883087]
[1724873166814,0.01757739,59581.0,59580.0,0.01883087]
[1724873167909,0.01757739,59581.0,59580.0,0.18667187]
[1724873167910,0.01857739,59581.0,59580.0,0.18667187]
[1724873168116,0.01757739,59581.0,59580.0,0.52235487]
[1724873168332,0.01757739,59581.0,59580.0,0.01883087]
[1724873168563,0.06767739,59581.0,59580.0,0.01883087]
[1724873168784,0.06667739,59581.0,59580.0,0.01883087]
[1724873168993,0.06767739,59581.0,59580.0,0.01883087]
[1724873169213,0.06767739,59581.0,59580.0,0.18667187]
[1724873169421,0.01757739,59581.0,59580.0,0.18667187]
[1724873170715,0.01857739,59581.0,59580.0,0.01883087]
[1724873171377,0.01757739,59581.0,59580.0,0.01883087]
[1724873171611,1.24154639,59581.0,59580.0,0.01883087]
[1724873171861,1.29154639,59581.0,59580.0,0.01883087]
[1724873172138,1.29154639,59581.0,59579.0,0.0008987]
[1724873172139,1.17489,59580.0,59579.0,0.0008987]
[1724873172384,0.11667739,59581.0,59579.0,0.0008987]
[1724873172385,0.01757739,59581.0,59579.0,0.0008987]
[1724873172819,0.167841,59580.0,59579.0,0.0008987]
[1724873173036,0.01757739,59581.0,59579.0,0.0008987]
[1724873173247,0.01857739,59581.0,59579.0,0.0008987]
[1724873173454,0.01857739,59581.0,59579.0,0.1687427]
[1724873173668,0.01857739,59581.0,59580.0,0.167841]
[1724873173920,0.01857739,59581.0,59580.0,0.89684098]
[1724873174144,0.01857739,59581.0,59580.0,1.37932398]
[1724873174145,0.001,59581.0,59580.0,1.37932398]
[1724873174599,0.0175752,59588.0,59587.0,0.920207]
[1724873174827,0.0175752,59588.0,59587.0,0.583564]
[1724873175059,0.0175752,59588.0,59587.0,0.0811]
[1724873175305,0.0175752,59588.0,59587.0,0.167821]
[1724873175523,0.0175752,59588.0,59581.0,0.0801]
[1724873175753,0.167828,59585.0,59581.0,0.0791]